[Event "ISR-chT 2019"]
[Site "Israel"]
[Date "2019.02.15"]
[Round "5.32"]
[White "Bakalchuk, Johnatan"]
[Black "Shvidler, Eliahu"]
[Result "1-0"]
[ECO "C42"]
[WhiteElo "2456"]
[BlackElo "2357"]
[Annotator "ChessBase"]
[PlyCount "73"]
[EventDate "2019.01.04"]
[EventType "team-tourn"]
[EventCountry "ISR"]
[SourceTitle "playchess.com"]
[Source "ChessBase"]
[SourceQuality "1"]
[TimeControl "40/5400+30:1800+30"]

1. e4 {[%emt 0:00:00]} e5 {[%emt 0:02:27]} 2. Nf3 {[%emt 0:00:00]} Nf6 {[%emt 0:00:11]} 3. Nxe5 {[%emt 0:00:00]} d6 {[%emt 0:00:08]} 4. Nf3 {[%emt 0:00:00]} Nxe4 {[%emt 0:00:09]} 5. d4 {[%emt 0:00:13]} Nf6 {[%emt 0:00:20]} 6. Bd3 {[%emt 0:00:19]} Be7 {[%emt 0:00:12]} 7. h3 {[%emt 0:01:29]} O-O {[%emt 0:00:20]} 8. O-O {[%emt 0:00:02]} b6 {[%emt 0:00:10]} 9. c4 {[%emt 0:05:51]} Bb7 {[%emt 0:06:19]} 10. Nc3 {[%emt 0:05:01]} Nbd7 {[%emt 0:05:06]} 11. Re1 {[%emt 0:03:11]} Re8 {[%emt 0:04:16]} 12. d5 {[%emt 0:05:13]} c6 {[%emt 0:09:22]} 13. dxc6 {[%emt 0:19:00]} Bxc6 {[%emt 0:00:12]} 14. Bf4 {[%emt 0:02:34]} Bb7 {[%emt 0:03:24]} 15. Nd4 {[%emt 0:05:10]} g6 {[%emt 0:05:47]} 16. Ndb5 {[%emt 0:02:21]} Ne5 {[%emt 0:02:29]} 17. Bf1 {[%emt 0:00:57]} a6 {[%emt 0:02:19]} 18. Na3 {[%emt 0:04:57]} Bf8 {[%emt 0:08:24]} 19. Qd2 {[%emt 0:04:14]} Qc7 {[%emt 0:05:46]} 20. Rad1 {[%emt 0:05:42]} Qc6 {[%emt 0:04:39]} 21. Nd5 {[%emt 0:04:37]} Nfd7 {[%emt 0:06:04]} 22. Bh6 {[%emt 0:07:33]} Bxh6 {[%emt 0:12:42]} 23. Qxh6 {[%emt 0:00:02]} f6 {[%emt 0:00:26]} 24. Qd2 {[%emt 0:03:23]} Kg7 {[%emt 0:01:22]} 25. f4 {[%emt 0:07:16]} Nf7 {[%emt 0:00:09]} 26. Nc2 {[%emt 0:00:41]} Qc5+ {[%emt 0:07:44]} 27. Nd4 {[%emt 0:01:14]} Bxd5 {[%emt 0:02:52]} 28. cxd5 {[%emt 0:00:18]} Kg8 {[%emt 0:00:21]} 29. Be2 {[%emt 0:03:35]} Rab8 {[%emt 0:04:42]} 30. b4 {[%emt 0:02:01]} Qc8 {[%emt 0:02:20]} 31. Nc6 {[%emt 0:01:59]} Ra8 {[%emt 0:00:36]} 32. Bg4 {[%emt 0:02:38]} f5 {[%emt 0:00:53]} 33. Bf3 {[%emt 0:00:39]} Qc7 {[%emt 0:01:28]} 34. Rc1 {[%emt 0:00:53]} Kf8 {[%emt 0:00:25]} 35. Nd4 {[%emt 0:01:20]} Rxe1+ {[%emt 0:01:00]} 36. Qxe1 {[%emt 0:00:08]} Qa7 {[%emt 0:00:46]} 37. Rc7 {[%emt 0:00:28]} 1-0

[Event "ISR-chT 2019"]
[Site "Israel"]
[Date "2019.02.15"]
[Round "5.33"]
[White "Aharonovich, Itamar"]
[Black "Caspi, Israel"]
[Result "0-1"]
[ECO "A88"]
[WhiteElo "2299"]
[BlackElo "2455"]
[Annotator "ChessBase"]
[PlyCount "70"]
[EventDate "2019.01.04"]
[EventType "team-tourn"]
[EventCountry "ISR"]
[SourceTitle "playchess.com"]
[Source "ChessBase"]
[SourceQuality "1"]
[TimeControl "40/5400+30:1800+30"]

1. d4 {[%emt 0:02:49]} d6 {[%emt 0:00:36]} 2. Nf3 {[%emt 0:00:30]} f5 {[%emt 0:00:06]} 3. g3 {[%emt 0:00:23]} Nf6 {[%emt 0:00:58]} 4. Bg2 {[%emt 0:00:11]} g6 {[%emt 0:00:03]} 5. c4 {[%emt 0:00:32]} Bg7 {[%emt 0:00:13]} 6. O-O {[%emt 0:00:12]} O-O {[%emt 0:00:05]} 7. Nc3 {[%emt 0:00:32]} c6 {[%emt 0:00:08]} 8. Rb1 {[%emt 0:01:32]} Ne4 {[%emt 0:01:18]} 9. Qc2 {[%emt 0:00:32]} Nxc3 {[%emt 0:00:07]} 10. bxc3 {[%emt 0:01:06]} e5 {[%emt 0:00:57]} 11. dxe5 {[%emt 0:00:14]} dxe5 {[%emt 0:00:08]} 12. Ba3 {[%emt 0:00:12]} Rf7 {[%emt 0:07:40]} 13. Rfd1 {[%emt 0:00:29]} Nd7 {[%emt 0:01:29]} 14. e4 {[%emt 0:02:28]} Bf8 {[%emt 0:00:15]} 15. Bxf8 {[%emt 0:00:31]} Qxf8 {[%emt 0:00:13]} 16. exf5 {[%emt 0:01:50]} gxf5 {[%emt 0:00:23]} 17. Qd2 {[%emt 0:03:38]} Re7 {[%emt 0:36:35]} 18. Qg5+ {[%emt 0:11:52]} Rg7 {[%emt 0:01:49]} 19. Qe3 {[%emt 0:14:11]} e4 {[%emt 0:07:27]} 20. Nh4 {[%emt 0:01:42]} Nc5 {[%emt 0:02:53]} 21. Qf4 {[%emt 0:12:18]} Be6 {[%emt 0:02:24]} 22. f3 {[%emt 0:14:49]} exf3 {[%emt 0:04:49]} 23. Bxf3 {[%emt 0:00:58]} Re8 {[%emt 0:05:43]} 24. Bh5 {[%emt 0:05:26]} Ree7 {[%emt 0:00:42]} 25. Rf1 {[%emt 0:04:00]} Ne4 {[%emt 0:07:02]} 26. Rbe1 {[%emt 0:05:23]} Ng5 {[%emt 0:03:28]} 27. Kg2 {[%emt 0:03:28]} Kh8 {[%emt 0:01:17]} 28. Re2 {[%emt 0:03:48]} Qg8 {[%emt 0:02:34]} 29. Nxf5 {[%emt 0:03:23]} Bd5+ {[%emt 0:00:43]} 30. cxd5 {[%emt 0:00:57]} Qxd5+ {[%emt 0:00:07]} 31. Kf2 {[%emt 0:03:42]} Nh3+ {[%emt 0:00:19]} 32. Ke1 {[%emt 0:00:09]} Rxe2+ {[%emt 0:00:49]} 33. Bxe2 {[%emt 0:00:08]} Nxf4 {[%emt 0:00:10]} 34. Rxf4 {[%emt 0:00:11]} Rd7 {[%emt 0:02:21]} 35. Kf2 {[%emt 0:01:27]} Rf7 {[%emt 0:02:41]} 0-1

[Event "ISR-chT 2019"]
[Site "Israel"]
[Date "2019.02.15"]
[Round "5.34"]
[White "Zifroni, Dov"]
[Black "Kundin, Alexander"]
[Result "1-0"]
[ECO "D15"]
[WhiteElo "2442"]
[BlackElo "2311"]
[Annotator "NA"]
[PlyCount "73"]
[EventDate "2019.01.04"]
[EventType "team-tourn"]
[EventCountry "ISR"]
[SourceTitle "playchess.com"]
[Source "ChessBase"]
[SourceQuality "1"]
[TimeControl "40/5400+30:1800+30"]

1. d4 {[%emt 1:30:30]} d5 {[%emt 0:04:29]} 2. c4 {[%emt 0:00:00]} c6 {[%emt 0:00:06]} 3. Nf3 {[%emt 0:00:00]} Nf6 {[%emt 0:00:08]} 4. Nc3 {[%emt 0:00:00]} a6 {[%emt 0:00:04]} 5. c5 {[%emt 0:00:00]} Nbd7 {[%emt 0:00:07]} 6. Bf4 {[%emt 0:00:00]} Nh5 {[%emt 0:00:08]} 7. Bd2 {[%emt 0:00:00]} Qc7 {[%emt 0:14:47]} 8. e4 dxe4 {[%emt 0:06:21]} 9. Ng5 {[%emt 0:00:00]} Ndf6 {[%emt 0:31:33]} 10. Bc4 {[%emt 0:00:00]} e6 {[%emt 0:00:02]} 11. Ncxe4 {[%emt 0:00:00]} Be7 {[%emt 0:00:36]} 12. O-O {[%emt 0:00:00]} Nxe4 {[%emt 0:06:04]} 13. Nxe4 {[%emt 0:00:00]} Nf6 {[%emt 0:00:01]} 14. Qf3 {[%emt 0:00:00]} Nxe4 {[%emt 0:01:50]} 15. Qxe4 {[%emt 0:00:00]} O-O {[%emt 0:01:23]} 16. Bf4 {[%emt 0:00:00]} Qd8 {[%emt 0:00:55]} 17. Rad1 {[%emt 0:00:00]} Bd7 {[%emt 0:02:41]} 18. Rd3 {[%emt 0:00:00]} Bf6 {[%emt 0:01:42]} 19. Be5 {[%emt 0:00:00]} g6 {[%emt 0:11:45]} 20. Rfd1 {[%emt 0:00:00]} Bg7 {[%emt 0:01:34]} 21. Qf4 {[%emt 0:00:00]} f6 {[%emt 0:02:24]} 22. Bc7 {[%emt 0:00:00]} Qc8 {[%emt 0:00:43]} 23. Re1 {[%emt 0:00:00]} Re8 {[%emt 0:00:17]} 24. Rde3 {[%emt 0:00:00]} Kf7 {[%emt 0:04:51]} 25. Bd6 {[%emt 0:00:00]} Qd8 {[%emt 0:02:32]} 26. Rb3 {[%emt 0:00:00]} Ra7 {[%emt 0:01:31]} 27. h4 {[%emt 0:00:29]} Qa5 {[%emt 0:01:54]} 28. Rc1 {[%emt 0:02:38]} Qd8 {[%emt 0:00:39]} 29. Re3 {[%emt 0:01:37]} Ra8 {[%emt 0:00:46]} 30. Bc7 {[%emt 0:00:53]} Qc8 {[%emt 0:02:16]} 31. Rce1 {[%emt 0:00:36]} Kg8 {[%emt 0:00:33]} 32. Bd6 {[%emt 0:00:22]} Kf7 {[%emt 0:00:39]} 33. h5 {[%emt 0:02:53]} g5 {[%emt 0:00:35]} 34. Qf5 {[%emt 0:01:21]} h6 {[%emt 0:00:28]} 35. Qh7 {[%emt 0:01:12]} Ra7 {[%emt 0:00:28]} 36. Bd3 {[%emt 0:00:47]} Rh8 {[%emt 0:00:21]} 37. Bg6# {[%emt 0:00:13]} 1-0

[Event "ISR-chT 2019"]
[Site "Israel"]
[Date "2019.02.15"]
[Round "5.35"]
[White "Haimovich, Tal"]
[Black "Kreizberg, Michael"]
[Result "*"]
[ECO "A62"]
[WhiteElo "2408"]
[BlackElo "2297"]
[Annotator "NA"]
[PlyCount "36"]
[EventDate "2019.01.04"]
[EventType "team-tourn"]
[EventCountry "ISR"]
[SourceTitle "playchess.com"]
[Source "ChessBase"]
[SourceQuality "1"]
[TimeControl "40/5400+30:1800+30"]

1. d4 {[%emt 0:00:00]} Nf6 {[%emt 0:00:10]} 2. c4 {[%emt 0:00:00]} e6 {[%emt 0:00:05]} 3. g3 {[%emt 0:00:00]} c5 {[%emt 0:01:31]} 4. d5 {[%emt 0:01:46]} exd5 {[%emt 0:00:25]} 5. cxd5 {[%emt 0:00:05]} d6 {[%emt 0:00:34]} 6. Nc3 {[%emt 0:00:23]} g6 {[%emt 0:00:07]} 7. Bg2 {[%emt 0:00:14]} Bg7 {[%emt 0:00:04]} 8. Nf3 {[%emt 0:00:11]} O-O {[%emt 0:00:07]} 9. O-O {[%emt 0:00:04]} Re8 {[%emt 0:01:11]} 10. Bf4 {[%emt 0:00:55]} Ne4 {[%emt 0:00:56]} 11. Nxe4 {[%emt 0:00:51]} Rxe4 {[%emt 0:00:06]} 12. Nd2 {[%emt 0:02:02]} Rb4 {[%emt 0:00:54]} 13. a3 {[%emt 0:02:08]} Rxf4 {[%emt 0:04:20]} 14. gxf4 {[%emt 1:28:21]} Bxb2 {[%emt 0:00:06]} 15. Rb1 {[%emt 0:05:45]} Bg7 {[%emt 0:04:49]} 16. e4 {[%emt 0:00:31]} Nd7 {[%emt 0:09:17]} 17. Nf3 {[%emt 0:33:49]} Bh6 {[%emt 0:03:33]} 18. Ng5 {[%emt 0:01:09]} Nf6 {[%emt 0:18:47]} *

[Event "ISR-chT 2019"]
[Site "Israel"]
[Date "2019.02.15"]
[Round "5.36"]
[White "Lev, Ronen"]
[Black "Gershkowich, David"]
[Result "1-0"]
[ECO "D36"]
[WhiteElo "2355"]
[BlackElo "2200"]
[Annotator "NA"]
[PlyCount "105"]
[EventDate "2019.01.04"]
[EventType "team-tourn"]
[EventCountry "ISR"]
[SourceTitle "playchess.com"]
[Source "ChessBase"]
[SourceQuality "1"]
[TimeControl "40/5400+30:1800+30"]

1. d4 {[%emt 0:00:00]} Nf6 {[%emt 0:00:00]} 2. c4 {[%emt 0:00:00]} e6 {[%emt 0:01:53]} 3. Nf3 {[%emt 0:00:47]} d5 {[%emt 0:00:21]} 4. Nc3 {[%emt 0:00:07]} Be7 {[%emt 0:00:07]} 5. cxd5 {[%emt 0:00:17]} exd5 {[%emt 0:00:11]} 6. Bg5 {[%emt 0:00:12]} Nbd7 {[%emt 0:00:07]} 7. e3 {[%emt 0:00:15]} c6 {[%emt 0:00:07]} 8. Bd3 {[%emt 0:01:01]} O-O {[%emt 0:00:18]} 9. O-O {[%emt 0:00:25]} Re8 {[%emt 0:00:06]} 10. Qc2 {[%emt 0:00:37]} Nf8 {[%emt 0:00:20]} 11. Bxf6 {[%emt 0:03:05]} Bxf6 {[%emt 0:00:05]} 12. b4 {[%emt 0:00:06]} a6 {[%emt 0:02:05]} 13. a4 {[%emt 0:00:46]} a5 {[%emt 0:00:17]} 14. b5 {[%emt 0:00:45]} Be7 {[%emt 0:03:11]} 15. Rfc1 {[%emt 0:00:26]} Be6 {[%emt 0:01:35]} 16. bxc6 {[%emt 0:13:20]} bxc6 {[%emt 0:00:14]} 17. Ne5 {[%emt 0:01:43]} Qd6 {[%emt 0:04:09]} 18. Ne2 {[%emt 0:01:19]} Rec8 {[%emt 0:03:36]} 19. Nxc6 {[%emt 0:08:27]} Kh8 {[%emt 0:00:58]} 20. Bb5 {[%emt 0:16:48]} Bd7 {[%emt 0:05:02]} 21. e4 {[%emt 0:02:29]} Bg5 {[%emt 0:05:20]} 22. f4 {[%emt 0:00:47]} Bxf4 {[%emt 0:01:23]} 23. Nxf4 {[%emt 0:02:56]} Qxf4 {[%emt 0:00:06]} 24. exd5 {[%emt 0:00:32]} Bxc6 {[%emt 0:03:39]} 25. Bxc6 {[%emt 0:02:21]} Qxd4+ {[%emt 0:06:13]} 26. Qf2 {[%emt 0:03:39]} Qxf2+ {[%emt 0:00:19]} 27. Kxf2 {[%emt 0:00:02]} Ra7 {[%emt 0:02:06]} 28. Ke3 {[%emt 0:04:35]} g6 {[%emt 0:03:29]} 29. Kd4 {[%emt 0:01:44]} Kg7 {[%emt 0:01:29]} 30. Rab1 {[%emt 0:00:41]} Rd8 {[%emt 0:03:35]} 31. Rb6 {[%emt 0:16:20]} Ne6+ {[%emt 0:07:38]} 32. Kc4 {[%emt 0:00:26]} Nf4 {[%emt 0:02:41]} 33. g3 {[%emt 0:03:03]} Nh5 {[%emt 0:01:30]} 34. Rcb1 {[%emt 0:01:13]} Re7 {[%emt 0:01:51]} 35. Rb8 {[%emt 0:05:22]} Rxb8 {[%emt 0:02:00]} 36. Rxb8 {[%emt 0:00:19]} Re2 {[%emt 0:00:23]} 37. d6 {[%emt 0:06:27]} Nf6 {[%emt 0:02:23]} 38. d7 {[%emt 0:00:52]} Rc2+ {[%emt 0:02:35]} 39. Kd3 {[%emt 0:02:07]} Nxd7 {[%emt 0:00:25]} 40. Bxd7 {[%emt 0:00:07]} Rxh2 {[%emt 0:00:15]} 41. Ra8 {[%emt 0:32:58]} h5 {[%emt 0:38:51]} 42. Rxa5 {[%emt 0:00:53]} Rg2 {[%emt 0:00:26]} 43. Rd5 {[%emt 0:00:00]} Rxg3+ {[%emt 0:00:00]} 44. Kc4 {[%emt 0:00:00]} f5 {[%emt 0:00:00]} 45. a5 {[%emt 0:00:00]} Ra3 {[%emt 0:00:00]} 46. Kb4 {[%emt 0:00:00]} Ra1 {[%emt 0:00:00]} 47. Ba4 {[%emt 0:00:00]} Rb1+ {[%emt 0:00:00]} 48. Bb3 {[%emt 0:00:00]} Ra1 {[%emt 0:00:00]} 49. Rd1 {[%emt 0:00:00]} Rxa5 {[%emt 0:00:00]} 50. Kxa5 {[%emt 0:00:00]} g5 {[%emt 0:00:00]} 51. Rd5 {[%emt 0:00:00]} Kf6 {[%emt 0:00:00]} 52. Bc2 {[%emt 0:00:00]} h4 {[%emt 0:00:00]} 53. Bxf5 {[%emt 0:00:00]} 1-0

[Event "ISR-chT 2019"]
[Site "Israel"]
[Date "2019.02.22"]
[Round "7.1"]
[White "Boruchovsky, Avital"]
[Black "Alexikov, Alexander"]
[Result "1/2-1/2"]
[ECO "B52"]
[WhiteElo "2534"]
[BlackElo "2258"]
[Annotator "RC"]
[PlyCount "69"]
[EventDate "2019.01.04"]
[EventType "team-tourn"]
[EventCountry "ISR"]
[SourceTitle "playchess.com"]
[Source "ChessBase"]
[SourceQuality "1"]
[TimeControl "40/5400+30:1800+30"]

1. e4 {[%emt 0:00:00]} c5 {[%emt 0:01:15]} 2. Nf3 {[%emt 0:00:00]} d6 {[%emt 0:00:12]} 3. Bb5+ {[%emt 0:00:00]} Bd7 {[%emt 0:00:17]} 4. Bxd7+ {[%emt 0:00:07]} Qxd7 {[%emt 0:00:11]} 5. O-O {[%emt 0:00:59]} Nc6 {[%emt 0:01:55]} 6. c3 {[%emt 0:01:46]} Nf6 {[%emt 0:14:58]} 7. Qe2 {[%emt 0:00:53]} e6 {[%emt 0:04:24]} 8. Rd1 {[%emt 0:02:57]} Be7 {[%emt 0:06:02]} 9. d4 {[%emt 0:26:02]} cxd4 {[%emt 0:06:44]} 10. cxd4 {[%emt 0:02:26]} d5 {[%emt 0:02:36]} 11. e5 {[%emt 0:02:30]} Ne4 {[%emt 0:00:52]} 12. Ne1 {[%emt 0:00:06]} f6 {[%emt 0:10:50]} 13. f3 {[%emt 0:00:21]} Ng5 {[%emt 0:00:29]} 14. Nc3 {[%emt 0:00:50]} f5 {[%emt 0:02:30]} 15. Be3 {[%emt 0:15:15]} O-O {[%emt 0:06:21]} 16. Nd3 {[%emt 0:01:51]} Nf7 {[%emt 0:01:15]} 17. Kh1 {[%emt 0:02:58]} g5 {[%emt 0:04:06]} 18. f4 {[%emt 0:01:31]} g4 {[%emt 0:01:16]} 19. Bf2 {[%emt 0:01:01]} Nh8 {[%emt 0:01:58]} 20. g3 {[%emt 0:10:27]} Ng6 {[%emt 0:07:34]} 21. Kg2 {[%emt 0:00:06]} h5 {[%emt 0:03:37]} 22. Rh1 {[%emt 0:00:07]} Kg7 {[%emt 0:01:40]} 23. h3 {[%emt 0:01:41]} Rh8 {[%emt 0:00:12]} 24. Rh2 {[%emt 0:04:24]} Rh7 {[%emt 0:02:52]} 25. Rah1 {[%emt 0:00:15]} Rah8 {[%emt 0:00:25]} 26. Qd1 {[%emt 0:01:42]} b6 {[%emt 0:05:09]} 27. Qa4 {[%emt 0:03:07]} Qb7 {[%emt 0:01:49]} 28. Kg1 {[%emt 0:02:44]} a6 {[%emt 0:01:35]} 29. Ne2 {[%emt 0:02:48]} Na5 {[%emt 0:04:47]} 30. hxg4 {[%emt 0:00:33]} hxg4 {[%emt 0:00:09]} 31. Rxh7+ {[%emt 0:00:17]} Rxh7 {[%emt 0:00:02]} 32. Rxh7+ {[%emt 0:00:10]} Kxh7 {[%emt 0:00:09]} 33. Qe8 {[%emt 0:04:43]} Kg7 {[%emt 0:00:19]} 34. Be1 {[%emt 0:00:28]} Qc6 {[%emt 0:01:37]} 35. Qxc6 {[%emt 0:02:51]} 1/2-1/2

[Event "ISR-chT 2019"]
[Site "Israel"]
[Date "2019.02.22"]
[Round "7.4"]
[White "Poleg, Matan"]
[Black "Rozentalis, Eduardas"]
[Result "0-1"]
[ECO "E11"]
[WhiteElo "2195"]
[BlackElo "2529"]
[Annotator "ChessBase"]
[PlyCount "85"]
[EventDate "2019.01.04"]
[EventType "team-tourn"]
[EventCountry "ISR"]
[SourceTitle "playchess.com"]
[Source "ChessBase"]
[SourceQuality "1"]
[TimeControl "40/5400+30:1800+30"]

1. d4 {[%emt 0:00:36]} Nf6 {[%emt 0:00:00]} 2. c4 {[%emt 0:00:32]} e6 {[%emt 0:00:00]} 3. Nf3 {[%emt 0:00:26]} Bb4+ {[%emt 0:01:08]} 4. Nbd2 {[%emt 0:00:37]} O-O {[%emt 0:01:28]} 5. a3 {[%emt 0:00:38]} Bxd2+ {[%emt 0:00:31]} 6. Qxd2 {[%emt 0:00:08]} d6 {[%emt 0:01:00]} 7. b3 {[%emt 0:00:13]} b6 {[%emt 0:03:17]} 8. g3 {[%emt 0:00:52]} Bb7 {[%emt 0:00:11]} 9. Bg2 {[%emt 0:00:37]} Nbd7 {[%emt 0:00:28]} 10. Bb2 {[%emt 0:02:05]} Qe7 {[%emt 0:01:25]} 11. O-O {[%emt 0:02:09]} Rfd8 {[%emt 0:10:54]} 12. Rfd1 {[%emt 0:12:38]} Be4 {[%emt 0:01:54]} 13. Bh3 {[%emt 0:10:47]} h6 {[%emt 0:04:01]} 14. d5 {[%emt 0:06:50]} exd5 {[%emt 0:05:30]} 15. Nd4 {[%emt 0:00:11]} dxc4 {[%emt 0:00:57]} 16. f3 {[%emt 0:00:13]} Bb7 {[%emt 0:02:38]} 17. Nf5 {[%emt 0:01:12]} Qf8 {[%emt 0:04:56]} 18. Qc3 {[%emt 0:05:05]} Ne5 {[%emt 0:14:12]} 19. bxc4 {[%emt 0:06:18]} h5 {[%emt 0:12:03]} 20. Qc1 {[%emt 0:03:18]} Bc8 {[%emt 0:01:16]} 21. Qg5 {[%emt 0:04:47]} Bxf5 {[%emt 0:00:30]} 22. Bxf5 {[%emt 0:00:42]} Qe7 {[%emt 0:02:18]} 23. Rd4 {[%emt 0:03:56]} Re8 {[%emt 0:01:41]} 24. Rh4 {[%emt 0:12:01]} Ng6 {[%emt 0:01:48]} 25. Bxg6 {[%emt 0:00:10]} fxg6 {[%emt 0:00:06]} 26. e4 {[%emt 0:00:17]} Qf7 {[%emt 0:07:06]} 27. Rf4 {[%emt 0:00:53]} Re6 {[%emt 0:00:15]} 28. a4 {[%emt 0:02:04]} Rae8 {[%emt 0:02:43]} 29. a5 {[%emt 0:00:49]} Re5 {[%emt 0:02:51]} 30. Bxe5 {[%emt 0:00:06]} Rxe5 {[%emt 0:02:35]} 31. axb6 {[%emt 0:00:07]} axb6 {[%emt 0:00:42]} 32. Rxf6 {[%emt 0:04:15]} Qxf6 {[%emt 0:00:34]} 33. Qe3 {[%emt 0:06:31]} Ra5 {[%emt 0:01:30]} 34. Rxa5 {[%emt 0:00:47]} bxa5 {[%emt 0:00:35]} 35. c5 {[%emt 0:02:23]} a4 {[%emt 0:06:06]} 36. f4 {[%emt 0:03:01]} Qb2 {[%emt 0:01:41]} 37. cxd6 {[%emt 0:02:06]} cxd6 {[%emt 0:00:18]} 38. f5 {[%emt 0:00:27]} a3 {[%emt 0:01:48]} 39. Qd3 {[%emt 0:01:01]} gxf5 {[%emt 0:01:12]} 40. Qd5+ {[%emt 0:00:30]} Kh8 {[%emt 0:00:08]} 41. Qxd6 {[%emt 0:10:04]} Kh7 {[%emt 0:09:09]} 42. Qd1 {[%emt 0:05:03]} Qb6+ {[%emt 0:04:02]} 43. Kg2 {[%emt 0:01:06]} 0-1

[Event "ISR-chT 2019"]
[Site "Israel"]
[Date "2019.02.22"]
[Round "7.6"]
[White "Drozdov, Alexandre"]
[Black "Ben Artzi, Ido"]
[Result "0-1"]
[ECO "A45"]
[WhiteElo "2208"]
[BlackElo "2376"]
[Annotator "NA"]
[PlyCount "64"]
[EventDate "2019.01.04"]
[EventType "team-tourn"]
[EventCountry "ISR"]
[SourceTitle "playchess.com"]
[Source "ChessBase"]
[SourceQuality "1"]
[TimeControl "40/5400+30:1800+30"]

1. d4 {[%emt 0:00:00]} Nf6 {[%emt 0:00:11]} 2. Bg5 {[%emt 0:00:00]} Ne4 {[%emt 0:00:07]} 3. Bf4 {[%emt 0:00:00]} d5 {[%emt 0:00:06]} 4. f3 {[%emt 0:00:00]} Nf6 {[%emt 0:00:16]} 5. e3 {[%emt 0:01:19]} c5 {[%emt 0:00:37]} 6. c3 {[%emt 0:00:09]} Nc6 {[%emt 0:00:54]} 7. Bd3 {[%emt 0:00:36]} e6 {[%emt 0:02:42]} 8. Nd2 {[%emt 0:09:13]} Nh5 {[%emt 0:02:49]} 9. Ne2 {[%emt 0:21:45]} Nxf4 {[%emt 0:00:59]} 10. Nxf4 {[%emt 0:06:08]} Bd6 {[%emt 0:01:07]} 11. g3 {[%emt 0:01:57]} h5 {[%emt 0:04:31]} 12. Qe2 {[%emt 0:02:56]} h4 {[%emt 0:04:05]} 13. O-O-O {[%emt 0:06:14]} c4 {[%emt 0:15:00]} 14. Bb1 {[%emt 0:02:38]} g5 {[%emt 0:00:23]} 15. Ng2 {[%emt 0:01:26]} h3 {[%emt 0:02:23]} 16. Ne1 {[%emt 0:00:02]} b5 {[%emt 0:00:56]} 17. e4 {[%emt 0:02:20]} Kf8 {[%emt 0:13:38]} 18. Nc2 {[%emt 0:07:03]} b4 {[%emt 0:03:27]} 19. Rdf1 {[%emt 0:01:04]} bxc3 {[%emt 0:21:26]} 20. bxc3 {[%emt 0:00:04]} f5 {[%emt 0:08:41]} 21. Re1 {[%emt 0:18:30]} Bd7 {[%emt 0:00:56]} 22. Nf1 {[%emt 0:02:06]} f4 {[%emt 0:05:31]} 23. Rg1 {[%emt 0:02:14]} Qa5 {[%emt 0:01:45]} 24. e5 {[%emt 0:01:57]} Ba3+ {[%emt 0:04:34]} 25. Kd1 {[%emt 0:04:02]} Qxc3 {[%emt 0:01:24]} 26. Qd2 {[%emt 0:01:49]} Qxf3+ {[%emt 0:00:37]} 27. Re2 {[%emt 0:00:04]} c3 {[%emt 0:00:47]} 28. Ne1 {[%emt 0:00:58]} Qxf1 {[%emt 0:01:46]} 29. Qxc3 {[%emt 0:00:08]} Qxg1 {[%emt 0:00:23]} 30. Qxa3+ {[%emt 0:00:06]} Kg7 {[%emt 0:00:25]} 31. Rd2 {[%emt 0:02:26]} fxg3 {[%emt 0:00:31]} 32. Qf3 {[%emt 0:04:03]} Raf8 {[%emt 0:00:18]} 0-1

[Event "ISR-chT 2019"]
[Site "Israel"]
[Date "2019.02.22"]
[Round "7.11"]
[White "Golod, Vitali"]
[Black "Judkovsky, Yair"]
[Result "0-1"]
[ECO "E37"]
[WhiteElo "2523"]
[BlackElo "2298"]
[Annotator "ChessBase"]
[PlyCount "84"]
[EventDate "2019.01.04"]
[EventType "team-tourn"]
[EventCountry "ISR"]
[SourceTitle "playchess.com"]
[Source "ChessBase"]
[SourceQuality "1"]
[TimeControl "40/5400+30:1800+30"]

1. d4 {[%emt 0:00:00]} Nf6 {[%emt 0:00:00]} 2. c4 {[%emt 0:00:22]} e6 {[%emt 0:00:00]} 3. Nc3 {[%emt 0:02:38]} Bb4 {[%emt 0:00:00]} 4. Qc2 {[%emt 0:00:14]} d5 {[%emt 0:00:34]} 5. a3 {[%emt 0:02:20]} Bxc3+ {[%emt 0:01:21]} 6. Qxc3 {[%emt 0:00:06]} O-O {[%emt 0:02:41]} 7. Nf3 {[%emt 0:02:39]} c5 {[%emt 0:14:59]} 8. dxc5 {[%emt 0:07:00]} Nc6 {[%emt 0:01:31]} 9. e3 {[%emt 0:14:01]} Ne4 {[%emt 0:06:31]} 10. Qc2 {[%emt 0:00:52]} Qa5+ {[%emt 0:05:14]} 11. Nd2 {[%emt 0:03:43]} Nxd2 {[%emt 0:09:40]} 12. Bxd2 {[%emt 0:01:06]} Qxc5 {[%emt 0:00:10]} 13. b4 {[%emt 0:03:39]} Qb6 {[%emt 0:12:50]} 14. c5 {[%emt 0:11:37]} Qc7 {[%emt 0:03:32]} 15. Be2 {[%emt 0:02:20]} e5 {[%emt 0:02:39]} 16. O-O {[%emt 0:02:35]} Be6 {[%emt 0:00:35]} 17. Qb2 {[%emt 0:03:10]} Rad8 {[%emt 0:11:58]} 18. b5 {[%emt 0:03:37]} Ne7 {[%emt 0:00:44]} 19. Bc3 {[%emt 0:05:23]} f6 {[%emt 0:01:44]} 20. Rac1 {[%emt 0:01:00]} Nf5 {[%emt 0:07:04]} 21. Rfd1 {[%emt 0:04:49]} Qf7 {[%emt 0:01:00]} 22. c6 {[%emt 0:01:55]} b6 {[%emt 0:04:06]} 23. a4 {[%emt 0:02:21]} Rfe8 {[%emt 0:03:52]} 24. a5 {[%emt 0:01:23]} Qg6 {[%emt 0:01:39]} 25. axb6 {[%emt 0:02:08]} axb6 {[%emt 0:00:08]} 26. Bb4 {[%emt 0:04:12]} d4 {[%emt 0:02:13]} 27. c7 {[%emt 0:01:15]} Rc8 {[%emt 0:00:25]} 28. Bd3 {[%emt 0:05:19]} Bd5 {[%emt 0:00:52]} 29. f3 {[%emt 0:00:51]} e4 {[%emt 0:02:09]} 30. fxe4 {[%emt 0:01:03]} Bxe4 {[%emt 0:00:55]} 31. exd4 {[%emt 0:02:34]} Ne3 {[%emt 0:00:30]} 32. Bxe4 {[%emt 0:00:15]} Rxe4 {[%emt 0:00:31]} 33. Re1 {[%emt 0:03:46]} Nxg2 {[%emt 0:01:42]} 34. Qa2+ {[%emt 0:04:31]} Kh8 {[%emt 0:00:09]} 35. Qxg2 {[%emt 0:00:44]} Rg4 {[%emt 0:00:07]} 36. Rc2 {[%emt 0:00:28]} h5 {[%emt 0:00:52]} 37. h3 {[%emt 0:00:28]} Rxg2+ {[%emt 0:00:53]} 38. Rxg2 {[%emt 0:00:03]} Qd3 {[%emt 0:00:33]} 39. Re7 {[%emt 0:02:07]} Qxd4+ {[%emt 0:00:30]} 40. Kh1 {[%emt 0:00:32]} Qxb4 {[%emt 0:01:34]} 41. Rgxg7 {[%emt 0:03:33]} Qb1+ {[%emt 0:01:09]} 42. Kh2 {[%emt 0:05:39]} Ra8 {[%emt 0:02:35]} 0-1